bitfinex-derivatives/quotes_ETHF0:USTF0_20250411
["timestamp","ask_amount","ask_price","bid_price","bid_amount"]
[1744364269808,1.27682,1567.3,1567.2,6.3736077]
[1744364270008,1.27682,1567.3,1567.2,7.22348353]
[1744364270310,1.27682,1567.3,1567.2,0.84988353]
[1744364270502,1.27682,1567.3,1567.2,7.7e-06]
[1744364270804,1.27675,1567.4,1567.2,11.3736077]
[1744364271107,1.27673,1567.4,1567.3,6.3736]
[1744364271803,4.48453,1567.4,1567.3,0.85002636]
[1744364272004,9.48453,1567.4,1567.3,0.85002636]
[1744364272209,12.39943,1567.4,1567.3,6.36e-06]
[1744364272407,7.39943,1567.4,1567.3,6.36e-06]
[1744364272606,1.27682,1567.3,1567.2,7.7e-06]
[1744364272908,1.91522001,1567.3,1567.2,7.7e-06]
[1744364273504,4.83012001,1567.3,1567.2,7.7e-06]
[1744364274210,1.91522001,1567.3,1567.2,6.3736077]
[1744364274813,8.09122001,1567.3,1567.2,6.3736077]
[1744364276710,1.91522001,1567.3,1567.2,6.3736077]
[1744364276905,8.09122001,1567.3,1567.2,6.3736077]
[1744364278005,8.09122001,1567.3,1567.2,9.0711077]
[1744364278805,1.91522001,1567.3,1567.2,9.0711077]
[1744364279007,8.09122001,1567.3,1567.2,9.0711077]
[1744364279615,8.09122001,1567.3,1567.2,7.7e-06]
[1744364280210,8.09122001,1567.3,1567.2,6.3736077]
[1744364281113,1.27682,1567.3,1567.2,6.3736077]
[1744364281410,1.91522001,1567.3,1567.2,8.8179077]
[1744364281610,1.27682,1567.3,1567.2,8.8179077]
[1744364281819,1.91522001,1567.3,1567.2,8.8179077]
[1744364282417,1.91522001,1567.3,1567.2,7.7e-06]
[1744364283215,8.49150001,1567.3,1566.4,53.61869782]
[1744364283409,1.27739,1566.6,1566.5,8.8173]
[1744364283810,1.27739,1566.6,1566.5,13.8173]
[1744364284012,1.27739,1566.6,1566.5,8.8173]
[1744364285920,1.27747,1566.5,1566.4,9.62047667]
[1744364286213,7.19647,1566.5,1566.4,15.99407667]
[1744364286419,7.19647,1566.5,1566.4,18.71417667]
[1744364286719,9.96957,1566.5,1566.4,18.71417667]
[1744364287318,9.96957,1566.5,1566.4,9.62047667]
[1744364287319,10.60797001,1566.5,1566.4,9.62047667]
[1744364288417,7.83487001,1566.5,1566.4,9.10327885]
[1744364288811,1.91587001,1566.5,1566.4,9.10327885]
[1744364289020,1.27747,1566.5,1566.4,14.10327885]
[1744364289221,1.27747,1566.5,1566.4,9.10327885]
[1744364289419,3.84620001,1566.6,1566.5,1.27747]
[1744364289721,1.27739,1566.6,1566.5,9.122]
[1744364289916,5.12359001,1566.6,1566.5,2.7484]
[1744364290118,1.27747,1566.5,1566.4,0.00957885]
[1744364290320,1.27747,1566.5,1566.4,6.38317885]
[1744364290511,0.63840001,1566.6,1566.4,6.38317885]
[1744364290718,0.00957885,1566.7,1566.6,1.27739]
[1744364291222,7.19701,1567.1,1566.8,1.27717]
[1744364291423,1.27706,1567.0,1566.9,5.1721]
[1744364291719,103.277,1567.6,1566.9,11.5457]
[1744364291924,0.63840001,1567.5,1567.1,4.48475]
[1744364292125,1.27677,1567.4,1567.2,2.7484]
[1744364292422,1.27677,1567.4,1567.2,9.122]
[1744364292626,1.92468886,1567.5,1567.3,6.3736]
[1744364292819,1.28628885,1567.5,1567.4,2.8034]
[1744364293014,4.49408885,1567.5,1567.4,2.8034]
[1744364293415,1.27682,1567.3,1567.2,40.8]
[1744364293621,1.27679,1567.4,1567.3,6.3736]
[1744364294626,1.2769,1567.2,1567.1,0.00957885]
[1744364294822,10.4037,1567.2,1567.1,9.18657885]
[1744364295127,10.4037,1567.2,1567.1,2.81297885]
[1744364295324,10.4037,1567.2,1567.1,0.00957885]
[1744364296729,10.4037,1567.2,1567.1,6.38317885]
[1744364296929,7.1959,1567.2,1567.1,6.38317885]
[1744364299226,5.919,1567.2,1567.1,15.86795885]
[1744364299621,5.919,1567.2,1567.1,14.59097885]
[1744364299821,7.1959,1567.2,1567.1,6.38317885]
[1744364300022,5.919,1567.2,1567.1,6.38317885]
[1744364300219,5.919,1567.2,1567.1,7.66015885]
[1744364300835,5.919,1567.2,1567.1,10.86795885]
[1744364301527,0.64797886,1567.5,1567.1,14.59097885]
[1744364301733,1.27676,1567.4,1567.2,12.74947]
[1744364301929,0.00957885,1567.5,1567.4,1.27673]
[1744364302124,0.00957885,1567.5,1567.3,11.9304]
[1744364302325,1.28624885,1567.5,1567.4,9.1273]
[1744364302824,0.00957885,1567.5,1567.4,9.1273]
[1744364303026,0.00957885,1567.5,1567.4,51.20403]
[1744364303232,1.91483001,1567.8,1567.6,1.27654]
[1744364303426,1.91483001,1567.8,1567.7,2.7537]
[1744364303633,1.91483001,1567.8,1567.7,9.1273]
[1744364306230,1.27641,1567.8,1567.7,9.1273]
[1744364306530,4.00001,1567.8,1567.7,9.1273]
[1744364306736,9.91701,1567.8,1567.7,9.1273]
[1744364307433,7.19341,1567.8,1567.7,9.1273]
[1744364308340,5.917,1567.8,1567.7,9.1273]
[1744364308630,7.19341,1567.8,1567.7,9.1273]
[1744364310140,1.27665,1567.5,1567.4,43.1561]
[1744364310437,1.27663,1567.6,1567.5,6.3736]
[1744364310628,11.8296,1567.8,1567.5,7.65023]
[1744364310828,1.27649,1567.7,1567.6,6.3736]
[1744364311639,4.07189,1567.7,1567.6,6.3736]
[1744364312032,4.07189,1567.7,1567.3,2.349]
[1744364312033,1.27673,1567.4,1567.3,2.349]
[1744364312233,1.27673,1567.4,1567.3,5.1712]
[1744364312432,1.27673,1567.4,1567.3,9.1958]
[1744364312633,7.27993,1567.4,1567.3,9.1958]
[1744364312832,6.0032,1567.4,1567.1,0.00957885]
[1744364313042,1.2769,1567.2,1567.1,0.00957885]
[1744364313240,7.0259,1567.2,1567.1,0.00957885]
[1744364313538,7.0259,1567.2,1567.1,6.38317885]
[1744364314038,5.749,1567.2,1567.1,7.66015885]
[1744364314236,5.749,1567.2,1567.1,17.85955885]
[1744364314438,1.27672,1567.5,1567.2,1.27685]
[1744364314740,104.33759,1567.6,1567.3,12.84143]
[1744364314941,1.27665,1567.5,1567.4,2.7218]
[1744364315139,104.33763,1567.6,1567.4,9.0954]
[1744364315339,104.33763,1567.6,1567.5,6.3736]
[1744364315534,103.061,1567.6,1567.5,9.0954]
[1744364317543,104.33757,1567.6,1567.5,9.0954]
[1744364321531,103.061,1567.6,1567.5,9.0954]
[1744364322243,104.33757,1567.6,1567.5,9.93174408]
[1744364323334,103.061,1567.6,1567.5,11.20839408]
[1744364323746,1.27649,1567.7,1567.5,13.67459408]
[1744364323936,7.02549,1567.7,1567.6,7.20994408]
[1744364324745,7.02549,1567.7,1567.6,6.3736]
[1744364325043,9.84739,1567.7,1567.6,6.3736]
[1744364325848,13.05519,1567.7,1567.6,6.3736]
[1744364326441,1.27673,1567.4,1567.3,2.4693]
[1744364326638,4.48445,1567.5,1567.4,6.3736]
[1744364326843,1.27682,1567.3,1567.2,5.0386]
[1744364327238,1.27682,1567.3,1567.2,11.4122]
[1744364327739,1.27682,1567.3,1567.2,12.24938521]
[1744364328533,1.27682,1567.3,1567.2,9.88608521]
[1744364328738,4.03882,1567.3,1567.2,7.21078521]
[1744364330047,7.02577,1567.4,1567.2,7.21078521]
[1744364330246,7.02577,1567.4,1567.3,9.3146]
[1744364330641,8.5367,1567.4,1567.1,0.00957885]
[1744364330947,1.27682,1567.3,1567.2,6.3736]
[1744364331149,4.06452,1567.3,1567.2,6.3736]
[1744364331342,1.2769,1567.2,1567.1,8.85e-06]
[1744364331547,1.2769,1567.2,1566.4,2.463]
[1744364331548,3.19306,1566.8,1566.4,2.463]
[1744364331852,3.19306,1566.8,1566.5,50.1146]
[1744364331853,1.27739,1566.6,1566.5,50.1146]
[1744364332241,3.2078,1567.1,1566.6,1.27736]
[1744364332556,3.2078,1567.1,1566.6,6.3736]
[1744364332557,1.2773,1566.7,1566.6,6.3736]
[1744364332744,7.0273,1566.7,1566.6,6.3736]
[1744364333149,6.38840001,1566.7,1566.6,6.3736]
[1744364333446,5.75,1566.7,1566.6,6.3736]
[1744364333650,7.0273,1566.7,1566.6,6.3736]
[1744364334244,7.02735,1566.7,1566.5,0.00957885]
[1744364334552,5.75,1566.7,1566.6,9.2979]
[1744364335155,7.0273,1566.7,1566.6,9.2979]
[1744364335841,5.75,1566.7,1566.6,9.2979]
[1744364336046,7.0273,1566.7,1566.6,9.2979]
[1744364338551,7.66570001,1566.7,1566.6,9.2979]
[1744364339856,7.66570001,1566.7,1566.6,6.3736]
[1744364343955,1.27739,1566.6,1566.5,2.83667885]
[1744364344362,1.27739,1566.6,1566.5,9.21027885]
[1744364349065,3.95469,1566.6,1566.5,9.21027885]
[1744364349269,1.27739,1566.6,1566.5,9.21027885]
[1744364351060,3.99529,1566.6,1566.5,9.21027885]
[1744364352164,9.59620001,1566.7,1566.5,9.21027885]
[1744364352165,0.63840001,1566.7,1566.5,9.21027885]
[1744364352368,0.00957885,1567.0,1566.6,12.77487]
[1744364352568,0.00957885,1567.0,1566.8,4.48496]
[1744364352771,1.28663885,1567.0,1566.9,7.4769]
[1744364353079,0.00957885,1567.0,1566.9,7.4769]
[1744364353270,0.00957885,1567.0,1566.9,13.8505]
[1744364354560,0.00957885,1567.0,1566.9,14.68001121]
[1744364355171,0.00957885,1567.0,1566.9,20.95715121]
[1744364356867,1.27687,1567.3,1567.1,1.27693]
[1744364357065,1.27687,1567.3,1567.2,2.9458]
[1744364357261,1.27687,1567.3,1567.2,8.04253]
[1744364359368,4.13447,1567.3,1567.2,8.04253]
[1744364359873,1.27687,1567.3,1567.2,8.04253]
[1744364360266,1.27682,1567.3,1567.2,8.04253]
[1744364360771,6.88137885,1567.4,1567.2,12.5272]
[1744364360971,5.60457885,1567.4,1567.3,6.37355]
[1744364361165,0.00957885,1567.4,1567.3,7.65043]
[1744364361370,1.28630885,1567.4,1567.3,7.65043]
[1744364361569,0.00957885,1567.4,1567.3,8.92725]
[1744364361768,0.00957885,1567.4,1567.3,13.92725]
[1744364361975,0.00957885,1567.4,1567.3,14.75681553]
[1744364362680,0.00957885,1567.4,1567.3,15.29693]
[1744364362866,1.28630885,1567.4,1567.3,15.29693]
[1744364363174,0.00957885,1567.4,1567.3,16.57375]
[1744364363571,0.00957885,1567.4,1567.3,57.37375]
[1744364363964,1.27633,1567.9,1567.6,1.27649]
[1744364364166,1.27633,1567.9,1567.7,9.60026]
[1744364365270,5.60357885,1568.0,1567.7,8.3238]
[1744364365471,1.27641,1567.8,1567.7,8.3238]
[1744364365976,1.27639,1567.9,1567.7,8.3238]
[1744364366276,1.27641,1567.8,1567.7,8.3238]
[1744364366677,1.27639,1567.9,1567.7,9.60028]
[1744364366872,1.27639,1567.9,1567.8,3.2078]
[1744364367678,1.27641,1567.8,1567.7,8.3238]
[1744364368574,1.27638,1567.9,1567.7,9.60028]
[1744364368873,5.60357885,1568.0,1567.7,8.3238]
[1744364369080,1.27633,1567.9,1567.7,8.3238]
[1744364369383,1.27633,1567.9,1567.8,40.8]
[1744364369571,4.32253,1567.9,1567.8,40.8]
[1744364369770,1.27649,1567.7,1567.6,0.00957885]
[1744364369975,1.27646,1567.8,1567.6,0.00957885]
[1744364370279,1.27649,1567.7,1567.6,40.80957885]
[1744364370477,4.32269,1567.7,1567.6,40.80957885]
[1744364370772,1.27643,1567.8,1567.6,40.80957885]
[1744364370977,4.32258,1567.9,1567.6,42.08610885]
[1744364371176,3.0462,1567.9,1567.7,2.8196]
[1744364371366,1.27641,1567.8,1567.7,2.8196]
[1744364373481,1.27649,1567.7,1567.6,0.00957885]
[1744364373773,4.83339001,1567.7,1567.6,0.00957885]
[1744364373979,18.63319001,1567.7,1567.6,0.00957885]
[1744364375181,13.63319001,1567.7,1567.6,0.00957885]
[1744364375674,10.42539001,1567.7,1567.6,0.00957885]
[1744364377282,6.86849,1567.7,1567.6,0.00957885]
[1744364378279,7.50689001,1567.7,1567.6,0.00957885]
[1744364380179,15.71469001,1567.7,1567.6,0.00957885]
[1744364380780,7.50689001,1567.7,1567.6,0.00957885]
[1744364380975,6.86849,1567.7,1567.6,0.00957885]
[1744364383177,5.592,1567.7,1567.6,0.00957885]
[1744364383689,6.86849,1567.7,1567.6,0.00957885]
[1744364383875,1.27646,1567.8,1567.6,4.49394885]
[1744364384077,1.27641,1567.8,1567.7,4.28843]
[1744364384377,1.27641,1567.8,1567.7,3.84201614]
[1744364385084,1.27641,1567.8,1567.7,3.012]
[1744364385986,1.27641,1567.8,1567.7,3.84268845]
[1744364389289,1.27641,1567.8,1567.7,3.012]
[1744364389583,1.27649,1567.7,1567.6,0.00957885]
[1744364389789,4.36069,1567.7,1567.6,0.00957885]
[1744364390187,1.27647,1567.8,1567.6,0.00957885]
[1744364390391,1.28586885,1568.0,1567.7,3.2078]
[1744364390614,1.27633,1567.9,1567.8,7.9174]
[1744364390888,1.27649,1567.7,1567.6,0.00957885]
[1744364391288,1.27649,1567.7,1567.6,2.89097885]
[1744364391490,1.27649,1567.7,1567.6,3.72240406]
[1744364393688,1.27649,1567.7,1567.6,2.89097885]
[1744364394084,4.33649,1567.7,1567.6,2.89097885]
[1744364394491,4.97489001,1567.7,1567.6,2.89097885]
[1744364394693,4.97489001,1567.7,1567.6,0.00957885]
[1744364394990,10.36489001,1567.7,1567.6,0.00957885]
[1744364395190,18.57269001,1567.7,1567.6,8.85e-06]
[1744364395592,3.19171,1567.5,1567.1,2.6445]
[1744364395786,1.27682,1567.3,1567.2,3.0916]
[1744364395980,1.27682,1567.3,1567.2,3.91882068]
[1744364396285,1.27706,1567.0,1566.9,2.4966]
[1744364396488,1.27706,1567.0,1566.9,5.5786]
[1744364400387,1.27706,1567.0,1566.9,3.082]
[1744364400587,1.27706,1567.0,1566.8,0.00957885]
[1744364400588,1.27714,1566.9,1566.8,0.00957885]
[1744364401595,1.27707,1567.0,1566.8,5.00957885]
[1744364401793,1.27707,1567.0,1566.9,3.0048]
[1744364401991,1.27707,1567.0,1566.9,6.2126]
[1744364403197,1.27707,1567.0,1566.9,3.0048]
[1744364403395,1.27714,1566.9,1566.8,0.00957885]
[1744364403894,1.27714,1566.9,1566.8,2.79597885]
[1744364406002,0.00957885,1567.1,1566.8,7.79597885]
[1744364406184,1.27708,1567.0,1566.9,6.0361]
[1744364406386,1.27708,1567.0,1566.9,44.0078]
[1744364406785,0.00957885,1567.1,1566.9,49.0078]
[1744364406990,3.19165,1567.5,1567.0,2.5651]
[1744364407200,1.27664,1567.6,1567.3,3.2078]
[1744364407394,1.27665,1567.5,1567.4,2.4751]
[1744364407895,1.27665,1567.5,1567.4,7.4751]
[1744364408397,1.27665,1567.5,1567.4,2.4751]
[1744364408597,1.27665,1567.5,1567.4,7.4751]
[1744364410002,1.27665,1567.5,1567.4,2.4751]
[1744364410204,1.27665,1567.5,1567.4,4.8658]
[1744364410501,6.54365,1567.5,1567.4,4.8658]
[1744364410693,1.2769,1567.2,1567.1,3.2078]
[1744364410896,1.2769,1567.2,1567.1,4.02189318]
[1744364412097,1.27698,1567.1,1567.0,2.3907]
[1744364412400,1.27698,1567.1,1567.0,5.5985]
[1744364412595,1.27698,1567.1,1567.0,10.5985]
[1744364412800,1.27695,1567.2,1567.0,11.87556]
[1744364412997,3.19164,1567.5,1567.0,5.5985]
[1744364413192,1.27688,1567.3,1567.2,3.2078]
[1744364414399,1.2769,1567.2,1567.1,2.4317]
[1744364414700,1.27698,1567.1,1567.0,5.5985]
[1744364415591,1.27696,1567.2,1567.0,6.8755]
[1744364415995,1.27698,1567.1,1567.0,6.8755]
[1744364416198,1.27698,1567.1,1567.0,5.5985]
[1744364416601,5.266,1567.3,1567.0,11.41297126]
[1744364416902,6.54282,1567.3,1567.2,4.4847]
[1744364417102,5.66951885,1567.6,1567.2,4.4847]
[1744364417103,1.27679,1567.4,1567.2,4.4847]
[1744364417604,1.27679,1567.4,1567.3,2.5262]
[1744364419107,1.27682,1567.3,1567.2,3.2078]
[1744364419795,1.27682,1567.3,1567.0,3.66769]
[1744364419796,1.27698,1567.1,1567.0,5.5985]
[1744364420002,1.27698,1567.1,1567.0,2.3907]
[1744364420618,1.27706,1567.0,1566.9,40.8]
[1744364420999,1.27714,1566.9,1566.8,0.00957885]
[1744364421300,6.54314,1566.9,1566.8,0.00957885]
[1744364421500,6.54314,1566.9,1566.8,40.80957885]
[1744364421704,5.266,1567.2,1566.8,45.29454885]
[1744364421902,1.27708,1567.0,1566.8,45.29454885]
[1744364422609,1.27704,1567.1,1566.8,45.29454885]
[1744364422809,11.35149,1567.2,1566.8,44.01737885]
[1744364423009,1.27714,1566.9,1566.8,40.80957885]
[1744364423308,6.54314,1566.9,1566.8,0.00957885]
[1744364423710,6.54314,1566.9,1566.8,40.80957885]
[1744364424212,6.54314,1566.9,1566.8,0.00957885]
[1744364425714,6.54314,1566.9,1566.8,2.83797885]
[1744364426415,9.28774,1566.9,1566.8,0.00957885]
[1744364427317,11.87694,1566.9,1566.8,0.00957885]
[1744364427920,17.51534001,1566.9,1566.8,0.00957885]
[1744364428415,17.51534001,1566.9,1566.8,8.85e-06]
[1744364430119,18.03698933,1566.9,1566.8,8.85e-06]
[1744364432914,1.27793,1566.0,1565.9,3.2078]
[1744364433119,1.27793,1566.0,1565.9,10.7123]
[1744364433315,1.27793,1566.0,1565.9,51.5123]
[1744364433617,1.27793,1566.0,1565.9,52.32766465]
[1744364434115,1.27793,1566.0,1565.9,51.5123]
[1744364434312,1.27793,1566.0,1565.9,54.5403]
[1744364434713,1.27793,1566.0,1565.9,49.5403]
[1744364435218,0.00957885,1566.1,1565.9,54.5403]
[1744364435523,1.28739885,1566.1,1566.0,3.028]
[1744364435908,1.28739885,1566.1,1566.0,9.30587]
[1744364436113,3.19327,1566.7,1566.0,8.028]
[1744364436319,1.27759,1566.4,1566.3,3.2078]
[1744364436523,1.27759,1566.4,1566.3,8.603]
[1744364440823,1.27759,1566.4,1566.3,9.88063]
[1744364442725,1.28710885,1566.5,1566.4,1.27755]
[1744364442920,0.00957885,1566.5,1566.4,4.25915]
[1744364443827,1.28704885,1566.5,1566.4,4.25915]
[1744364444126,1.28704885,1566.5,1566.4,5.074282]
[1744364444718,0.00957885,1566.5,1566.4,5.074282]
[1744364445029,1.28704885,1566.5,1566.4,5.074282]
[1744364445924,1.28704885,1566.5,1566.4,3.796732]
[1744364446324,1.28704885,1566.5,1566.4,2.9816]
[1744364446921,8.21737885,1566.5,1566.1,5.6017]
[1744364447229,1.27763,1566.3,1566.2,2.9617]
[1744364448126,3.19408,1566.3,1566.0,2.384]
[1744364448326,1.27771,1566.2,1566.1,2.8188]
[1744364448832,4.04281,1566.2,1566.1,2.8188]
[1744364449228,1.27771,1566.2,1566.1,2.8188]
[1744364451720,1.27771,1566.2,1566.1,6.84505447]
[1744364452120,1.27768,1566.3,1566.1,11.84505447]
[1744364452324,1.27768,1566.3,1566.2,5.83975447]
[1744364453630,1.27768,1566.3,1566.2,3.58035447]
[1744364454132,1.27768,1566.3,1566.2,4.47e-06]
[1744364454333,2.6722,1566.3,1566.0,5.1913]
[1744364454535,1.27779,1566.1,1566.0,5.1913]
[1744364454730,1.27779,1566.1,1566.0,2.384]
[1744364457837,8.4734,1566.2,1566.0,2.384]
[1744364457838,1.91696,1566.2,1566.0,2.384]
[1744364458038,5.162,1566.4,1566.1,3.2078]
[1744364458239,1.2777,1566.3,1566.1,3.2078]
[1744364458441,1.27771,1566.3,1566.1,3.2078]
[1744364458640,5.162,1566.4,1566.1,3.2078]
[1744364458641,1.27771,1566.2,1566.1,3.2078]
[1744364461137,1.27779,1566.1,1566.0,2.384]
[1744364462536,1.27779,1566.1,1565.9,5.624]
[1744364462537,1.27787,1566.0,1565.9,5.624]
[1744364463750,1.27787,1566.0,1565.9,3.2078]
[1744364464146,1.27796,1565.9,1565.8,2.43417885]
[1744364465152,1.27796,1565.9,1565.8,0.00957885]
[1744364465748,3.93476,1565.9,1565.8,0.00957885]
[1744364467450,1.27796,1565.9,1565.8,2.73137885]
[1744364467656,6.25994,1566.0,1565.8,2.73137885]
[1744364467852,6.25994,1566.0,1565.9,5.5671]
[1744364468061,4.982,1566.0,1565.8,4.94477885]
[1744364468349,1.27796,1565.9,1565.8,8.15257885]
[1744364468557,1.27796,1565.9,1565.8,6.24052353]
[1744364468764,1.27796,1565.9,1565.8,0.81932353]
[1744364468954,6.43166,1565.9,1565.8,0.00957885]
[1744364470360,6.43166,1565.9,1565.8,8.85e-06]
[1744364470855,11.43166,1565.9,1565.8,8.85e-06]
[1744364472953,1.27812,1565.7,1565.6,1.27048]
[1744364473149,6.26112,1565.7,1565.6,1.27048]
[1744364473463,11.90032,1565.7,1565.6,1e-05]
[1744364473761,14.52002,1565.7,1565.6,1e-05]
[1744364474454,1.2782,1565.6,1565.5,8.85e-06]
[1744364474760,9.5565,1565.6,1565.5,8.85e-06]
[1744364474961,1.27853,1565.2,1565.1,9.61089782]
[1744364475158,6.26153,1565.2,1565.1,9.61089782]
[1744364475456,1.27877,1564.9,1564.8,6.18334782]
[1744364475659,6.26177,1564.9,1564.8,6.18334782]
[1744364476556,8.97747,1564.9,1564.8,6.18334782]
[1744364477752,8.97747,1564.9,1564.8,4.84726782]
[1744364477753,14.61667,1564.9,1564.8,4.84726782]
[1744364478058,14.61667,1564.9,1564.7,13.05898898]
[1744364478059,1.27885,1564.8,1564.7,13.05898898]
[1744364478261,7.32335,1564.8,1564.7,11.27787881]
[1744364478559,12.30735,1564.8,1564.7,11.27787881]
[1744364479458,17.30735,1564.8,1564.7,11.27787881]
[1744364479659,12.30735,1564.8,1564.7,11.27787881]
[1744364479859,17.30735,1564.8,1564.7,0.00957885]
[1744364480156,12.30735,1564.8,1564.7,8.85e-06]
[1744364481359,7.32335,1564.8,1564.7,8.85e-06]
[1744364481559,12.30835,1564.8,1564.7,8.85e-06]
[1744364481749,7.32335,1564.8,1564.7,8.85e-06]
[1744364481948,12.30835,1564.8,1564.7,8.85e-06]
[1744364482152,17.30835,1564.8,1564.7,8.85e-06]
[1744364483161,12.30835,1564.8,1564.7,8.85e-06]
[1744364486962,9.47265,1564.8,1564.7,8.85e-06]
[1744364487163,6.26485,1564.8,1564.7,8.85e-06]
[1744364487756,8.83775,1564.8,1564.7,8.85e-06]
[1744364487964,12.04555,1564.8,1564.7,8.85e-06]
[1744364489166,17.04555,1564.8,1564.7,8.85e-06]
[1744364489856,1.27918,1564.4,1564.3,2.631]
[1744364490053,1.27935,1564.2,1564.1,3.2078]
[1744364490370,1.27943,1564.1,1564.0,43.1845]
[1744364490554,6.26643,1564.1,1564.0,2.3845]
[1744364490854,6.90643,1564.1,1564.0,2.3845]
[1744364491455,6.90643,1564.1,1564.0,5.1402]
[1744364492865,6.26643,1564.1,1564.0,5.1402]
[1744364493064,6.90643,1564.1,1564.0,5.1402]
[1744364493258,6.26643,1564.1,1564.0,5.1402]
[1744364493568,6.90643,1564.1,1564.0,5.1402]
[1744364493865,6.26643,1564.1,1564.0,5.1402]
[1744364494069,1.27943,1564.1,1564.0,10.1402]
[1744364494462,1.27943,1564.1,1564.0,5.1402]
[1744364494765,1.91943,1564.1,1564.0,5.1402]
[1744364495969,0.00957885,1564.2,1564.0,5.1402]
[1744364496168,0.64957885,1564.2,1564.1,2.5852]
[1744364496369,1.92892885,1564.2,1564.1,2.5852]
[1744364498667,0.00957885,1564.2,1564.1,2.5852]
[1744364498870,1.28892885,1564.2,1564.1,2.5852]
[1744364501568,0.00957885,1564.2,1564.1,12.07243]
[1744364501768,1.28892885,1564.2,1564.1,2.5852]
[1744364502067,6.26292885,1564.2,1564.1,2.5852]
[1744364503069,8.87772885,1564.2,1564.1,2.5852]
[1744364503271,7.66851,1564.0,1563.9,8.85e-06]
[1744364503469,3.19925,1563.8,1563.4,2.6023]
[1744364503668,1.27984,1563.6,1563.5,2.4289]
[1744364504073,1.27984,1563.6,1563.5,5.0312]
[1744364507374,1.27984,1563.6,1563.5,2.6023]
[1744364507574,3.96104,1563.6,1563.5,2.6023]
[1744364508175,1.27984,1563.6,1563.5,2.6023]
[1744364509172,7.6552,1563.7,1563.4,0.0063859]
[1744364509376,1.27992,1563.5,1563.4,2.6401859]
[1744364510878,3.88892,1563.5,1563.4,2.6401859]
[1744364511375,9.52892,1563.5,1563.4,5.9e-06]
[1744364512183,4.52892,1563.5,1563.4,5.9e-06]
[1744364512384,1.91992,1563.5,1563.4,5.9e-06]
[1744364513182,1.27992,1563.5,1563.4,5.9e-06]
[1744364513484,1.91992,1563.5,1563.4,5.9e-06]
[1744364514390,4.49752,1563.5,1563.4,5.9e-06]
[1744364515484,9.49752,1563.5,1563.4,5.9e-06]
[1744364517289,4.49752,1563.5,1563.4,5.9e-06]
[1744364517686,9.47352,1563.5,1563.4,5.9e-06]
[1744364518887,6.89592,1563.5,1563.4,5.9e-06]
[1744364519287,6.89592,1563.5,1563.4,2.4032059]
[1744364520295,9.50012,1563.5,1563.4,2.4032059]
[1744364520491,9.50012,1563.5,1563.4,5.9e-06]
[1744364520793,6.89592,1563.5,1563.4,5.9e-06]
[1744364521492,6.89592,1563.5,1563.4,2.3626059]
[1744364521899,6.89592,1563.5,1563.4,4.9530059]
[1744364522795,1.27992,1563.5,1563.4,9.9530059]
[1744364523794,1.27992,1563.5,1563.4,4.9530059]
[1744364524788,1.27983,1563.7,1563.5,1.27989]
[1744364524992,1.27975,1563.7,1563.6,5.0663]
[1744364527194,4.947,1564.0,1563.6,10.0663]
[1744364527399,1.27959,1563.9,1563.7,3.9251]
[1744364527594,1.27959,1563.9,1563.8,2.6454]
[1744364527899,1.27959,1563.9,1563.8,5.0584]
[1744364529994,1.27959,1563.9,1563.8,6.33807]
[1744364530300,6.22658,1564.0,1563.8,6.33801]
[1744364530491,6.22658,1564.0,1563.9,5.9795]
[1744364533494,6.22658,1564.0,1563.9,2.7717]
[1744364534786,1.27975,1563.7,1563.6,2.4293]
[1744364535196,6.22575,1563.7,1563.6,2.4293]
[1744364535501,1.27984,1563.6,1563.5,0.8021836]
[1744364535699,1.27992,1563.5,1563.4,5.9e-06]
[1744364536096,1.27992,1563.5,1563.4,2.6732059]
[1744364537797,9.48772,1563.5,1563.4,5.9e-06]
[1744364538001,11.92722,1563.5,1563.4,5.9e-06]
[1744364538502,14.56342,1563.5,1563.4,5.9e-06]
[1744364539089,1.28025,1563.1,1563.0,7.4018]
[1744364539290,6.22625,1563.1,1563.0,2.6041]
[1744364539493,1.28049,1562.8,1562.7,41.60295895]
[1744364539694,1.28049,1562.8,1562.7,44.20705895]
[1744364539899,6.22649,1562.8,1562.7,44.20705895]
[1744364540102,6.22649,1562.8,1562.7,43.4041]
[1744364540400,6.22649,1562.8,1562.7,2.6041]
[1744364542499,8.1538,1562.8,1562.4,19.2952481]
[1744364542694,2.66067885,1562.9,1562.5,2.5873]
[1744364542993,1.28061,1562.7,1562.5,2.5873]
[1744364543189,1.28061,1562.7,1562.6,4.674]
[1744364544198,1.28066,1562.6,1562.5,2.5873]
[1744364544899,1.28082,1562.4,1562.3,44.0078]
[1744364545103,6.22782,1562.4,1562.3,40.8]
[1744364545303,1.2809,1562.3,1562.2,4.6402]
[1744364545705,1.2809,1562.3,1562.2,45.4402]
[1744364546106,1.2809,1562.3,1562.2,48.1614]
[1744364546309,1.2809,1562.3,1562.2,45.9164]
[1744364546708,1.2809,1562.3,1562.2,5.1164]
[1744364547107,6.22788,1562.4,1562.2,5.1164]
[1744364547411,6.22788,1562.4,1562.3,5.929]
[1744364548107,6.22788,1562.4,1562.3,2.7212]
[1744364549113,1.2809,1562.3,1562.2,5.603]
[1744364549411,4.1267,1562.3,1562.2,5.603]
[1744364549605,1.2809,1562.3,1562.2,5.603]
[1744364550005,1.2809,1562.3,1562.2,8.3106]
[1744364550317,6.2289,1562.4,1562.2,9.59158]
[1744364550505,6.22882,1562.4,1562.3,2.7076]
[1744364550807,1.28082,1562.4,1562.3,43.5076]
[1744364552309,1.28082,1562.4,1562.3,46.7154]
[1744364552715,5.49464,1562.7,1562.3,47.9963]
[1744364553017,1.28074,1562.5,1562.4,8.128]
[1744364553705,6.22972,1562.6,1562.5,1.28074]
[1744364553904,6.22966,1562.6,1562.5,2.6946]
[1744364554304,8.91026,1562.6,1562.5,2.6946]
[1744364555911,6.22966,1562.6,1562.5,2.6946]
[1744364556111,6.22966,1562.6,1562.5,7.18314]
[1744364556317,6.22966,1562.6,1562.5,5.9024]